bitfinex-derivatives/quotes_SOLF0:USTF0_20250426
["timestamp","ask_amount","ask_price","bid_price","bid_amount"]
[1745709039679,6.7122,148.92,148.89,30.7333]
[1745709039881,6.7127,148.91,148.89,24.02]
[1745709040083,5.86331937,148.91,148.86,29.88331937]
[1745709040373,12.57631937,148.9,148.86,29.88331937]
[1745709040579,5.86331937,148.9,148.86,29.88331937]
[1745709040878,5.86331937,148.9,148.88,6.7139]
[1745709043780,12.57611937,148.91,148.88,6.7139]
[1745709049883,12.57611937,148.91,148.88,6.68416464]
[1745709055487,12.57611937,148.91,148.89,6.7134]
[1745709062394,5.86331937,148.91,148.89,6.7134]
[1745709062698,5.86331937,148.94,148.89,5.86331937]
[1745709063104,6.7118,148.93,148.91,6.7125]
[1745709064500,5.86331937,148.95,148.9,5.86331937]
[1745709064688,5.86331937,148.94,148.9,5.86331937]
[1745709064891,12.57461937,148.94,148.91,6.7123]
[1745709067895,12.57461937,148.94,148.9,5.86331937]
[1745709068198,12.57461937,148.94,148.92,6.7121]
[1745709070202,5.86331937,148.93,148.92,6.7121]
[1745709073906,6.711,148.95,148.92,6.7121]
[1745709074202,5.86331937,148.94,148.92,6.7121]
[1745709076306,5.86331937,148.94,148.93,6.7117]
[1745709076507,5.86331937,148.95,148.93,6.7117]
[1745709076701,30.7305,148.96,148.93,6.7117]
[1745709076906,29.88331937,148.96,148.94,6.7112]
[1745709077108,2.0866,148.98,148.92,5.86331937]
[1745709077311,5.86331937,148.96,148.92,5.86331937]
[1745709078311,5.86331937,148.96,148.94,6.7111]
[1745709080609,5.86331937,148.95,148.94,6.7111]
[1745709089517,5.86331937,148.96,148.95,6.7107]
[1745709091219,5.86331937,148.96,148.94,6.7112]
[1745709092622,5.86331937,148.95,148.93,6.7115]
[1745709092919,5.86331937,148.94,148.93,6.7115]
[1745709095124,5.86331937,148.95,148.93,6.7115]
[1745709096227,5.86331937,148.96,148.92,5.86331937]
[1745709096728,5.86331937,148.97,148.94,6.7109]
[1745709097225,12.57321937,148.97,148.94,6.7109]
[1745709099526,5.86331937,148.96,148.95,6.7108]
[1745709102326,5.86331937,149.01,148.95,5.86331937]
[1745709102530,5.86331937,149.01,148.96,5.86331937]
[1745709102733,5.86331937,149.01,148.98,6.7091]
[1745709102929,5.86331937,149.0,148.98,6.7091]
[1745709105935,12.57191937,149.0,148.97,6.7097]
[1745709106331,12.57191937,149.0,148.95,5.86331937]
[1745709106929,12.57191937,149.0,148.97,6.7098]
[1745709108439,12.57191937,149.0,148.98,6.7094]
[1745709108739,5.86331937,149.0,148.98,6.7094]
[1745709109139,5.86331937,149.0,148.99,6.709]
[1745709109335,5.86331937,149.03,148.94,24.02]
[1745709109540,5.86331937,149.04,149.0,5.86331937]
[1745709109942,36.56991937,149.05,149.02,6.7073]
[1745709110239,30.7066,149.05,149.02,6.7073]
[1745709110435,29.86331937,149.05,149.03,6.7071]
[1745709110639,12.56921937,149.06,149.03,6.7071]
[1745709110940,5.86331937,149.06,149.03,6.7071]
[1745709112339,12.56921937,149.06,149.03,6.7071]
[1745709113739,6.7064,149.05,149.02,12.57081937]
[1745709113943,5.86331937,149.04,149.02,6.7075]
[1745709116249,5.86331937,149.03,149.01,6.7079]
[1745709118847,12.57011937,149.04,149.01,6.7079]
[1745709119047,5.86331937,149.04,148.99,5.86331937]
[1745709119245,5.86331937,149.02,148.98,29.86331937]
[1745709119441,5.86331937,148.99,148.98,24.0]
[1745709119648,5.86331937,148.99,148.96,6.7103]
[1745709120549,5.86331937,148.99,148.97,6.7098]
[1745709121547,5.86331937,148.98,148.95,24.0]
[1745709121747,5.86331937,148.97,148.95,24.0]
[1745709122549,5.86331937,148.97,148.95,30.7108]
[1745709123051,12.57301937,148.98,148.95,30.7108]
[1745709125249,12.57301937,148.98,148.95,24.0]
[1745709125454,6.71,148.97,148.95,24.0]
[1745709125654,6.71,148.97,148.94,6.7111]
[1745709126355,6.7104,148.96,148.93,14.60911937]
[1745709126552,6.7104,148.96,148.93,8.7458]
[1745709127056,6.7099,148.97,148.94,6.7111]
[1745709131958,6.7104,148.96,148.93,6.7116]
[1745709133661,12.57331937,148.97,148.94,6.7112]
[1745709133865,5.86331937,148.96,148.94,6.7112]
[1745709135165,12.57381937,148.96,148.93,6.7116]
[1745709137165,5.86331937,148.96,148.93,6.7116]
[1745709139071,12.57381937,148.96,148.93,6.7116]
[1745709140271,6.711,148.95,148.92,30.712]
[1745709140568,12.57431937,148.95,148.92,30.712]
[1745709142582,5.86331937,148.95,148.92,30.712]
[1745709142980,12.57381937,148.96,148.92,30.712]
[1745709143980,6.7105,148.96,148.92,30.712]
[1745709144279,12.57381937,148.96,148.93,6.7116]
[1745709156687,6.7108,148.95,148.93,6.7116]
[1745709157488,6.7108,148.95,148.92,30.712]
[1745709158289,6.7108,148.95,148.93,6.7117]
[1745709159388,12.57391937,148.96,148.93,6.7117]
[1745709160690,24.0,148.99,148.89,29.86331937]
[1745709160691,5.86331937,148.94,148.89,29.86331937]
[1745709160892,5.86331937,148.94,148.9,5.86331937]
[1745709161088,6.7115,148.94,148.91,6.7126]
[1745709163496,6.7113,148.94,148.91,6.7126]
[1745709163689,5.86331937,148.95,148.91,6.7126]
[1745709163889,5.86331937,148.94,148.9,12.57621937]
[1745709164190,6.7117,148.93,148.9,12.57621937]
[1745709165491,6.7117,148.93,148.91,6.7126]
[1745709165792,12.57471937,148.94,148.91,6.7126]
[1745709166093,6.7114,148.94,148.91,6.7126]
[1745709167188,6.711,148.95,148.92,12.57541937]
[1745709171293,6.711,148.95,148.93,6.7117]
[1745709174197,6.711,148.95,148.92,12.57531937]
[1745709174393,6.711,148.95,148.92,6.712]
[1745709176595,5.86331937,148.94,148.91,24.0]
[1745709177097,6.7119,148.93,148.91,24.0]
[1745709180303,5.86331937,148.95,148.91,24.0]
[1745709181003,6.7113,148.94,148.91,30.7124]
[1745709181604,6.7117,148.93,148.91,30.7124]
[1745709184502,6.7121,148.92,148.91,24.0]
[1745709186406,12.57521937,148.93,148.91,24.0]
[1745709186606,12.57521937,148.93,148.9,6.713]
[1745709189111,6.7121,148.92,148.9,6.713]
[1745709189307,6.7121,148.92,148.89,12.57661937]
[1745709189502,5.86331937,148.92,148.88,24.0]
[1745709189809,6.7133,148.9,148.88,24.0]
[1745709190015,5.86331937,148.91,148.88,24.0]
[1745709190807,6.713,148.9,148.88,24.0]
[1745709191010,6.713,148.9,148.86,14.68731937]
[1745709193014,6.713,148.9,148.87,6.7143]
[1745709193909,12.57591937,148.91,148.87,6.7143]
[1745709195312,12.57591937,148.91,148.88,6.7139]
[1745709196611,5.86331937,148.92,148.89,6.7134]
[1745709197910,12.57551937,148.92,148.89,6.7134]
[1745709202815,6.7126,148.91,148.88,12.57711937]
[1745709203318,12.57591937,148.91,148.88,6.7138]
[1745709203914,6.7131,148.9,148.87,12.57751937]
[1745709204614,5.86331937,148.91,148.87,6.7142]
[1745709204816,1.9624,148.94,148.85,24.0]
[1745709204817,5.86331937,148.88,148.85,24.0]
[1745709205517,12.57761937,148.88,148.85,30.7152]
[1745709206117,12.57761937,148.88,148.86,6.7148]
[1745709206318,6.7143,148.88,148.86,6.7148]
[1745709206819,6.7143,148.88,148.85,30.7151]
[1745709208819,12.57701937,148.89,148.86,6.7147]
[1745709210621,6.714,148.88,148.86,6.7147]
[1745709210820,6.714,148.88,148.85,30.7151]
[1745709212521,6.714,148.88,148.86,6.7148]
[1745709212718,12.57701937,148.89,148.86,6.7148]
[1745709212919,5.86331937,148.88,148.86,6.7148]
[1745709214922,5.86331937,148.88,148.87,6.7144]
[1745709215123,5.86331937,148.89,148.87,6.7144]
[1745709216324,12.57681937,148.89,148.87,6.7144]
[1745709217618,12.57681937,148.89,148.86,6.7146]
[1745709225533,29.84331937,148.91,148.87,5.86331937]
[1745709225732,23.98,148.91,148.87,5.86331937]
[1745709225933,29.84331937,148.91,148.87,5.86331937]
[1745709227238,36.55631937,148.91,148.88,6.7137]
[1745709227939,6.7131,148.9,148.88,6.7137]
[1745709231541,5.86331937,148.92,148.88,5.86331937]
[1745709232041,12.57551937,148.92,148.88,5.86331937]
[1745709232542,12.57611937,148.91,148.87,5.86331937]
[1745709232844,12.57611937,148.91,148.88,6.7139]
[1745709233345,6.7131,148.9,148.88,6.7139]
[1745709234045,6.7128,148.91,148.88,6.7139]
[1745709240147,12.57551937,148.92,148.89,6.7134]
[1745709240447,6.7122,148.92,148.89,6.7134]
[1745709243048,6.7126,148.91,148.89,6.7134]
[1745709245250,12.57571937,148.92,148.89,6.7134]
[1745709248458,6.7124,148.92,148.89,6.7134]
[1745709248652,12.57571937,148.92,148.89,6.7134]
[1745709249455,6.7128,148.91,148.89,6.7134]
[1745709249655,12.57611937,148.91,148.89,6.7134]
[1745709250361,6.7128,148.91,148.89,6.7134]
[1745709250562,12.57561937,148.92,148.89,6.7134]
[1745709250958,5.86331937,148.92,148.9,6.7129]
[1745709251361,5.86331937,148.92,148.88,5.86331937]
[1745709251857,12.57551937,148.92,148.89,6.7132]
[1745709265172,6.7127,148.91,148.88,12.57701937]
[1745709265369,5.86331937,148.92,148.87,23.98]
[1745709265672,5.86331937,148.88,148.85,7.90112495]
[1745709266269,12.57761937,148.88,148.85,7.90112495]
[1745709266470,5.86331937,148.87,148.85,7.90112495]
[1745709267073,6.7148,148.86,148.85,7.90112495]
[1745709268776,12.57791937,148.87,148.85,7.90112495]
[1745709268975,6.7146,148.87,148.84,12.57901937]
[1745709270380,6.7149,148.86,148.84,5.86331937]
[1745709270572,6.7149,148.86,148.83,29.82331937]
[1745709270974,6.7149,148.86,148.83,36.53941937]
[1745709271773,6.7149,148.86,148.83,29.82331937]
[1745709271974,6.7149,148.86,148.83,36.53931937]
[1745709272175,6.7149,148.86,148.83,30.676]
[1745709272373,6.7149,148.86,148.83,36.53931937]
[1745709272568,12.57821937,148.86,148.83,30.676]
[1745709272774,12.57861937,148.85,148.83,23.96]
[1745709273073,5.86331937,148.85,148.83,23.96]
[1745709273277,5.86331937,148.84,148.83,23.96]
[1745709273474,5.86331937,148.84,148.81,5.86331937]
[1745709273670,12.57931937,148.84,148.81,6.7169]
[1745709274674,5.86331937,148.82,148.8,7.90112495]
[1745709274876,5.86331937,148.81,148.8,7.90112495]
[1745709275283,5.86331937,148.81,148.77,55.58449982]
[1745709275577,5.86331937,148.78,148.77,55.58449982]
[1745709275883,6.7185,148.78,148.77,55.58449982]
[1745709276881,6.7185,148.78,148.77,31.60449982]
[1745709277182,5.86331937,148.79,148.77,31.60449982]
[1745709277482,5.86331937,148.78,148.77,31.60449982]
[1745709277780,12.58181937,148.78,148.77,31.60449982]
[1745709277983,12.58181937,148.78,148.74,23.98]
[1745709278181,5.86331937,148.77,148.74,30.7001]
[1745709279781,5.86331937,148.77,148.75,6.7197]
[1745709280682,5.86331937,148.78,148.76,6.7194]
[1745709281884,5.86331937,148.79,148.75,5.86331937]
[1745709282081,5.86331937,148.8,148.76,5.86331937]
[1745709283287,5.86331937,148.8,148.77,6.7188]
[1745709284182,12.58091937,148.8,148.77,6.7188]
[1745709284477,5.86331937,148.79,148.77,6.7188]
[1745709285487,5.86331937,148.8,148.78,6.7182]
[1745709285683,12.58061937,148.81,148.78,6.7182]
[1745709285986,5.86331937,148.8,148.75,5.86331937]
[1745709286287,5.86331937,148.79,148.75,5.86331937]
[1745709286588,5.86331937,148.8,148.77,6.7185]
[1745709288188,12.58091937,148.8,148.77,6.7185]
[1745709294392,12.58091937,148.8,148.78,6.7184]
[1745709294888,12.58091937,148.8,148.77,6.7187]
[1745709295193,12.58141937,148.79,148.77,6.7187]
[1745709295587,5.86331937,148.79,148.77,6.7187]
[1745709298394,5.86331937,148.79,148.75,5.86331937]
[1745709298697,5.86331937,148.78,148.74,29.84331937]
[1745709298993,5.86331937,148.79,148.75,5.86331937]
[1745709299595,5.86331937,148.79,148.74,23.98]
[1745709299794,5.86331937,148.78,148.74,23.98]
[1745709299997,5.86331937,148.78,148.74,29.84331937]
[1745709300497,12.58161937,148.79,148.74,29.84331937]
[1745709300696,5.86331937,148.8,148.76,5.86331937]
[1745709300896,5.86331937,148.8,148.77,6.7188]
[1745709301296,5.86331937,148.8,148.76,5.86331937]
[1745709301496,5.86331937,148.8,148.78,6.7183]
[1745709304206,12.58091937,148.8,148.77,6.7187]
[1745709307898,12.58131937,148.79,148.76,12.58261937]
[1745709308099,5.86331937,148.78,148.74,23.98]
[1745709308801,5.86331937,148.76,148.74,23.98]
[1745709309103,5.86331937,148.76,148.74,30.7]
[1745709310498,12.58261937,148.77,148.75,6.7198]
[1745709310803,5.86331937,148.77,148.75,6.7198]
[1745709311902,12.58221937,148.77,148.75,6.7198]
[1745709312105,12.58221937,148.77,148.74,30.7001]
[1745709313405,12.58221937,148.77,148.75,6.7198]
[1745709314003,12.58221937,148.77,148.74,23.98]
[1745709314204,12.58221937,148.77,148.74,30.7001]
[1745709314508,12.58291937,148.76,148.71,23.98]
[1745709314709,5.86331937,148.77,148.73,5.86331937]
[1745709315306,5.86331937,148.77,148.74,6.72]
[1745709315507,29.84331937,148.79,148.75,5.86331937]
[1745709315905,6.7185,148.78,148.75,12.58271937]
[1745709316306,29.84331937,148.79,148.75,5.86331937]
[1745709316503,23.98,148.79,148.76,5.86331937]
[1745709316703,5.86331937,148.8,148.76,5.86331937]
[1745709317406,5.86331937,148.8,148.77,6.7187]
[1745709317407,12.58111937,148.8,148.77,6.7187]
[1745709320108,6.718,148.79,148.77,6.7187]
[1745709321615,12.58131937,148.79,148.77,6.7187]
[1745709322713,12.58131937,148.79,148.76,6.7192]
[1745709323211,5.86331937,148.79,148.77,6.7189]
[1745709324511,12.58131937,148.79,148.77,6.7189]
[1745709324702,12.58131937,148.79,148.75,5.86331937]
[1745709325011,5.86331937,148.77,148.74,23.98]
[1745709325200,5.86331937,148.76,148.74,23.98]
[1745709325406,5.86331937,148.76,148.74,30.6999]
[1745709326614,5.86331937,148.76,148.74,23.98]
[1745709326813,12.58271937,148.76,148.73,6.7205]
[1745709327114,5.86331937,148.75,148.71,23.98]
[1745709327315,5.86331937,148.75,148.72,5.86331937]
[1745709327508,12.58281937,148.76,148.72,5.86331937]
[1745709327817,5.86331937,148.77,148.73,5.86331937]
[1745709328112,12.58181937,148.78,148.71,23.98]
[1745709328311,12.58181937,148.78,148.74,5.86331937]
[1745709328916,12.58181937,148.78,148.74,12.58331937]
[1745709329216,6.7189,148.77,148.74,12.58331937]
[1745709329411,5.86331937,148.78,148.75,6.7197]
[1745709329617,5.86331937,148.78,148.74,5.86331937]
[1745709329817,12.58201937,148.78,148.74,5.86331937]
[1745709330012,5.86331937,148.78,148.74,5.86331937]
[1745709330214,29.84331937,148.79,148.75,5.86331937]
[1745709330418,23.98,148.79,148.75,5.86331937]
[1745709330717,6.7177,148.8,148.77,5.86331937]
[1745709331219,6.7177,148.8,148.76,5.86331937]
[1745709331517,6.7177,148.8,148.76,12.58241937]
[1745709331914,6.7181,148.79,148.76,6.7191]
[1745709332115,5.86331937,148.79,148.75,6.7197]
[1745709332315,5.86331937,148.78,148.75,6.7197]
[1745709333218,12.58211937,148.78,148.74,6.7201]
[1745709333409,5.86331937,148.77,148.74,6.7201]
[1745709334117,12.58241937,148.77,148.74,6.7201]
[1745709334418,5.86331937,148.77,148.73,6.7207]
[1745709334618,5.86331937,148.75,148.73,6.7207]
[1745709337919,12.58271937,148.76,148.73,6.7207]
[1745709339023,6.7194,148.76,148.74,5.86331937]
[1745709339323,5.86331937,148.79,148.74,5.86331937]
[1745709339622,5.86331937,148.79,148.75,5.86331937]
[1745709339823,6.7187,148.78,148.75,6.7197]
[1745709340226,5.86331937,148.79,148.74,5.86331937]
[1745709340424,5.86331937,148.78,148.74,5.86331937]
[1745709340625,12.58221937,148.78,148.74,12.58331937]
[1745709341728,6.7189,148.77,148.74,12.58331937]
[1745709341926,12.58221937,148.77,148.73,12.58391937]
[1745709342324,12.58221937,148.77,148.73,6.7206]
[1745709343628,6.7195,148.76,148.73,6.7206]
[1745709343927,5.86331937,148.76,148.74,6.7201]
[1745709344126,5.86331937,148.77,148.74,6.7201]
[1745709344326,12.58241937,148.77,148.74,6.7201]
[1745709348426,5.86331937,148.77,148.73,5.86331937]
[1745709348623,5.86331937,148.78,148.74,5.86331937]
[1745709349024,5.86331937,148.77,148.71,23.98]
[1745709349230,5.86331937,148.76,148.72,5.86331937]
[1745709349633,5.86331937,148.76,148.74,6.7203]
[1745709350230,12.58271937,148.76,148.74,6.7203]
[1745709352029,12.58271937,148.76,148.73,6.7205]
[1745709352332,6.7198,148.75,148.73,6.7205]
[1745709352522,12.58311937,148.75,148.71,29.84331937]
[1745709352727,12.58311937,148.75,148.72,6.7209]
[1745709354131,5.86331937,148.74,148.72,6.7209]
[1745709355334,12.58361937,148.74,148.72,6.7209]
[1745709356328,12.58361937,148.74,148.71,30.7014]
[1745709356833,12.58361937,148.74,148.71,23.98]
[1745709358135,12.58361937,148.74,148.71,30.7015]
[1745709358938,5.86331937,148.77,148.73,5.86331937]
[1745709359236,12.58251937,148.77,148.74,6.7202]
[1745709359936,12.58251937,148.77,148.73,5.86331937]
[1745709359937,5.86331937,148.77,148.75,6.7198]
[1745709360937,23.98,148.78,148.75,6.7198]
[1745709361138,6.7189,148.77,148.74,6.7201]
[1745709361637,6.7195,148.76,148.74,6.7201]
[1745709363436,6.7195,148.76,148.73,6.7205]
[1745709363742,6.7195,148.76,148.71,29.84331937]
[1745709364838,12.58241937,148.77,148.74,6.7203]
[1745709366239,6.7195,148.76,148.73,6.7206]
[1745709372437,12.58251937,148.77,148.71,29.84331937]
[1745709373644,5.86331937,148.77,148.71,29.84331937]
[1745709374341,12.58241937,148.77,148.74,6.72]
[1745709376943,6.7194,148.76,148.73,6.7205]
[1745709377143,6.7194,148.76,148.71,29.84331937]
[1745709377338,6.7194,148.76,148.73,6.7204]
[1745709379046,12.58241937,148.77,148.73,6.7204]
[1745709379248,12.58241937,148.77,148.74,6.7202]
[1745709379542,30.6987,148.78,148.72,5.86331937]
[1745709379947,30.6987,148.78,148.75,6.7196]
[1745709380147,5.86331937,148.8,148.75,5.86331937]
[1745709380845,12.58131937,148.8,148.77,6.7189]
[1745709382351,29.84331937,148.81,148.77,5.86331937]
[1745709382953,29.84331937,148.81,148.76,5.86331937]
[1745709382954,5.86331937,148.8,148.76,5.86331937]
[1745709383152,23.98,148.81,148.75,23.98]
[1745709383153,5.86331937,148.78,148.75,23.98]
[1745709383552,5.86331937,148.76,148.72,31.88112495]
[1745709383751,5.86331937,148.75,148.72,31.88112495]
[1745709383949,5.86331937,148.74,148.72,31.88112495]
[1745709385151,5.86331937,148.74,148.72,38.60192495]
[1745709385752,5.86331937,148.75,148.73,6.7207]
[1745709389548,12.58281937,148.76,148.73,6.7207]
[1745709390053,5.86331937,148.76,148.74,6.7203]
[1745709390951,12.58241937,148.77,148.74,6.7203]
[1745709392455,12.58241937,148.77,148.73,6.7206]
[1745709392755,12.58271937,148.76,148.73,6.7206]
[1745709393552,12.58321937,148.75,148.72,30.701]
[1745709393849,5.86331937,148.74,148.72,30.701]
[1745709394254,5.86331937,148.74,148.72,6.721]
[1745709396159,5.86331937,148.75,148.72,6.721]
[1745709396756,5.86331937,148.75,148.73,6.7206]
[1745709396955,12.58291937,148.76,148.73,6.7206]
[1745709399254,12.58291937,148.76,148.72,6.721]
[1745709399454,5.86331937,148.75,148.71,5.86331937]
[1745709399655,5.86331937,148.76,148.72,5.86331937]
[1745709399858,5.86331937,148.76,148.71,5.86331937]
[1745709400060,12.58271937,148.76,148.71,5.86331937]
[1745709401159,12.58271937,148.76,148.73,6.7204]
[1745709401360,5.86331937,148.76,148.73,6.7204]
[1745709402765,12.58291937,148.76,148.73,6.7204]
[1745709403063,5.86331937,148.76,148.73,6.7204]
[1745709404168,12.58271937,148.76,148.73,6.7204]
[1745709404366,6.7194,148.76,148.73,6.7204]
[1745709404565,12.58271937,148.76,148.73,6.7204]
[1745709405372,5.86331937,148.76,148.74,6.72]
[1745709413976,12.58231937,148.77,148.74,6.72]
[1745709418080,12.58231937,148.77,148.75,6.7198]
[1745709418371,5.86331937,148.77,148.75,6.7198]
[1745709419879,23.96,148.78,148.76,6.7194]
[1745709420379,12.58141937,148.79,148.76,6.7194]
[1745709420579,16.50781937,148.8,148.77,6.7188]
[1745709420881,12.58101937,148.8,148.77,6.7188]
[1745709422981,6.7181,148.79,148.76,6.7192]
[1745709423474,6.7185,148.78,148.75,6.7196]
[1745709423680,12.58181937,148.78,148.75,6.7196]
[1745709426382,12.58151937,148.79,148.76,6.7194]
[1745709427984,5.86331937,148.79,148.77,6.7188]
[1745709428188,12.58101937,148.8,148.77,6.7188]
[1745709430787,6.718,148.79,148.76,12.58251937]
[1745709431893,12.58111937,148.8,148.77,6.7189]
[1745709432393,5.86331937,148.79,148.77,6.7189]
[1745709433989,5.86331937,148.82,148.78,5.86331937]
[1745709434191,5.86331937,148.83,148.78,5.86331937]
[1745709434687,12.57971937,148.83,148.79,6.7176]
[1745709434885,12.57971937,148.83,148.78,5.86331937]
[1745709435094,12.57971937,148.83,148.8,6.7175]
[1745709437298,14.68531937,148.85,148.82,6.7167]
[1745709437597,5.86331937,148.89,148.84,5.86331937]
[1745709437797,5.86331937,148.89,148.85,5.86331937]
[1745709438097,5.86331937,148.89,148.86,6.7148]
[1745709439098,12.57721937,148.89,148.86,6.7148]
[1745709440998,29.82331937,148.91,148.87,5.86331937]
[1745709441695,29.82331937,148.91,148.88,6.7136]
[1745709441896,29.82331937,148.91,148.87,5.86331937]
[1745709442097,5.86331937,148.9,148.86,5.86331937]
[1745709442296,12.57641937,148.9,148.86,12.57801937]
[1745709442498,29.82331937,148.91,148.86,5.86331937]
[1745709442799,5.86331937,148.91,148.87,5.86331937]
[1745709443100,6.7131,148.9,148.87,5.86331937]
[1745709446898,6.7131,148.9,148.87,12.57761937]
[1745709447502,6.7128,148.91,148.87,12.57761937]
[1745709447698,12.57611937,148.91,148.87,12.57761937]
[1745709449502,6.7128,148.91,148.87,12.57761937]
[1745709450699,6.7131,148.9,148.87,5.86331937]
[1745709450893,6.7131,148.9,148.86,36.53801937]
[1745709451094,6.7131,148.9,148.86,29.82331937]
[1745709451899,12.57611937,148.91,148.87,6.7143]
[1745709452100,12.57611937,148.91,148.87,12.57761937]
[1745709452505,5.86331937,148.93,148.89,5.86331937]
[1745709452702,23.96,148.94,148.91,5.86331937]
[1745709452901,5.86331937,148.96,148.91,5.86331937]
[1745709454105,5.86331937,148.96,148.9,23.94]
[1745709454305,6.7108,148.95,148.92,6.7121]
[1745709457106,12.57381937,148.96,148.92,6.7121]
[1745709457706,12.57381937,148.96,148.93,6.7116]
[1745709459501,6.7108,148.95,148.92,6.712]
[1745709459808,6.7108,148.95,148.91,5.86331937]
[1745709460608,6.7108,148.95,148.92,6.7121]
[1745709460910,12.57391937,148.96,148.91,5.86331937]
[1745709461107,12.57391937,148.96,148.93,6.7116]
[1745709465614,6.7109,148.95,148.92,6.7119]
[1745709466113,6.7109,148.95,148.93,6.7116]
[1745709467708,12.57341937,148.97,148.94,6.711]
[1745709468717,6.7104,148.96,148.94,6.711]
[1745709469016,6.7104,148.96,148.93,6.7113]
[1745709471017,6.7108,148.95,148.93,6.7113]
[1745709475615,5.86331937,148.96,148.93,6.7113]
[1745709476926,5.86331937,148.96,148.94,6.7112]
[1745709477126,5.86331937,148.97,148.93,5.86331937]
[1745709477327,36.51291937,148.98,148.94,5.86331937]
[1745709477529,29.80331937,148.98,148.94,12.57421937]
[1745709477727,29.80331937,148.98,148.94,5.86331937]
[1745709477929,23.94,148.98,148.94,5.86331937]
[1745709478129,23.94,148.98,148.95,6.7107]
[1745709478332,23.94,148.98,148.94,5.86331937]
[1745709478630,29.80331937,148.98,148.94,5.86331937]
[1745709478932,6.7104,148.96,148.93,5.86331937]
[1745709479231,5.86331937,148.94,148.92,6.7119]
[1745709479426,5.86331937,148.93,148.9,23.94]
[1745709479622,5.86331937,148.92,148.9,23.94]
[1745709479925,5.86331937,148.92,148.9,30.6528]
[1745709482034,5.86331937,148.92,148.9,23.94]
[1745709482736,5.86331937,148.92,148.9,30.653]
[1745709483132,5.86331937,148.93,148.9,30.653]
[1745709483430,5.86331937,148.94,148.9,29.80331937]
[1745709483734,23.94,148.98,148.9,29.80331937]
[1745709483735,29.80331937,148.98,148.93,5.86331937]
[1745709483935,29.80331937,148.98,148.94,5.86331937]
[1745709484126,5.86331937,148.99,148.94,5.86331937]
[1745709484634,5.86331937,148.99,148.96,6.7101]
[1745709485235,12.57231937,148.99,148.96,6.7101]
[1745709486431,5.86331937,148.99,148.96,6.7101]
[1745709486636,12.57201937,149.0,148.96,12.57341937]
[1745709486936,5.86331937,149.0,148.96,12.57341937]
[1745709487738,5.86331937,148.99,148.95,6.7106]
[1745709487938,5.86331937,148.98,148.95,6.7106]
[1745709489337,6.71,148.97,148.94,36.49431937]
[1745709490232,12.57331937,148.97,148.94,36.49431937]
[1745709493841,5.86331937,148.97,148.95,6.7106]
[1745709494138,12.57281937,148.98,148.95,6.7106]
[1745709494941,5.86331937,148.98,148.95,6.7107]
[1745709495638,12.57301937,148.98,148.95,6.7107]
[1745709497643,6.7099,148.97,148.95,6.7107]
[1745709500045,5.86331937,149.0,148.96,5.86331937]
[1745709500241,29.78331937,149.01,148.96,5.86331937]
[1745709500541,5.86331937,149.0,148.97,6.7099]
[1745709501244,6.709,148.99,148.97,6.7099]
[1745709501744,12.57201937,149.0,148.96,5.86331937]
[1745709502245,12.57201937,149.0,148.97,6.7096]
[1745709502447,12.57201937,149.0,148.96,5.86331937]
[1745709503845,12.57201937,149.0,148.97,6.7095]
[1745709504446,12.57201937,149.0,148.98,6.7094]
[1745709504642,5.86331937,149.0,148.98,6.7094]
[1745709505143,12.57191937,149.0,148.98,6.7094]
[1745709505343,12.57191937,149.0,148.97,6.7097]
[1745709507845,6.7091,148.99,148.97,6.7097]
[1745709508049,12.57241937,148.99,148.96,6.7101]
[1745709508348,12.57241937,148.99,148.94,29.78331937]
[1745709509048,5.86331937,148.99,148.97,6.7098]
[1745709510053,5.86331937,148.99,148.98,6.7094]
[1745709511250,30.6283,149.01,148.98,6.7094]
[1745709511251,5.86331937,149.0,148.98,6.7094]
[1745709511545,5.86331937,149.01,148.97,5.86331937]
[1745709511746,5.86331937,149.03,148.99,5.86331937]
[1745709514153,5.86331937,149.03,149.0,6.7085]
[1745709514354,12.57061937,149.03,149.0,6.7085]
[1745709518950,6.7077,149.02,148.99,12.57211937]
[1745709519157,6.7077,149.02,148.99,6.7088]
[1745709519655,12.57061937,149.03,149.0,6.7083]
[1745709519858,5.86331937,149.03,148.98,29.78331937]
[1745709520457,6.7078,149.02,148.99,6.7087]